bitfinex-derivatives/quotes_ETHF0:USTF0_20250902
["timestamp","ask_amount","ask_price","bid_price","bid_amount"]
[1756775629663,0.72,4306.9,4306.5,0.237]
[1756775631466,0.72,4306.9,4306.8,0.4017]
[1756775631665,0.5097,4306.9,4306.8,1.68185745]
[1756775631869,0.5097,4306.9,4306.8,0.7136]
[1756775632061,0.72,4306.9,4306.8,0.4017]
[1756775632669,3.2078,4307.4,4306.2,3.2078]
[1756775632670,0.72,4306.3,4306.2,3.8465]
[1756775633271,0.72,4306.3,4306.2,44.6465]
[1756775633473,0.72,4306.3,4306.2,44.9584]
[1756775633665,0.72,4306.3,4306.2,45.92665745]
[1756775634469,0.5097,4306.3,4306.2,45.92665745]
[1756775638678,0.5097,4306.3,4306.2,41.4387]
[1756775640174,0.5097,4306.3,4306.2,41.7506]
[1756775644980,0.3054,4306.3,4306.2,41.7506]
[1756775645373,3.2078,4306.9,4306.2,41.7506]
[1756775645581,0.5097,4306.8,4306.7,0.7136]
[1756775645878,0.72,4306.8,4306.7,0.6387]
[1756775647575,0.2043,4306.9,4306.6,0.1925]
[1756775647879,3.2078,4307.9,4307.3,0.3119]
[1756775648078,0.2043,4307.8,4307.7,1.36995745]
[1756775648277,0.5097,4307.8,4307.7,1.68185745]
[1756775648670,0.3054,4307.8,4307.7,1.68185745]
[1756775649977,0.5097,4308.4,4308.3,0.4017]
[1756775650178,0.72,4308.4,4308.3,0.9506]
[1756775650484,0.00234997,4308.5,4308.4,0.7136]
[1756775650685,0.00234997,4308.5,4308.4,1.68185745]
[1756775652686,0.00234997,4308.5,4308.4,42.48185745]
[1756775656992,0.30334997,4308.5,4308.4,41.4387]
[1756775657288,0.30334997,4308.5,4308.4,41.7436]
[1756775657589,0.30334997,4308.5,4308.4,42.71185745]
[1756775659093,0.30334997,4308.5,4308.4,41.4387]
[1756775659397,0.30334997,4308.5,4308.4,41.2017]
[1756775659590,0.30334997,4308.5,4308.4,41.4387]
[1756775660287,0.30334997,4308.5,4308.4,41.7436]
[1756775661687,0.30334997,4308.5,4308.4,41.4387]
[1756775661893,0.30334997,4308.5,4308.4,41.7436]
[1756775665893,0.00234997,4308.5,4308.4,42.71185745]
[1756775666098,0.844,4310.0,4309.9,0.1991]
[1756775666298,1.42705872,4310.0,4309.9,0.1991]
[1756775666493,1.42705872,4310.0,4309.8,0.237]
[1756775666801,1.30255872,4309.9,4309.8,0.237]
[1756775667393,0.301,4309.8,4308.8,0.3049]
[1756775667596,3.2078,4309.6,4308.8,0.7117]
[1756775667789,0.8371,4309.5,4309.0,0.3049]
[1756775668099,0.8371,4309.5,4309.1,0.237]
[1756775668594,0.4185,4309.3,4309.2,0.237]
[1756775668799,0.7195,4309.3,4309.2,0.237]
[1756775668996,0.7195,4309.3,4308.6,0.3049]
[1756775668997,0.301,4309.2,4309.0,0.237]
[1756775669299,0.4185,4308.8,4308.7,0.237]
[1756775669501,0.5086,4308.0,4307.9,36.6448]
[1756775669699,0.5086,4308.0,4307.9,36.8818]
[1756775669999,0.7195,4308.0,4307.9,0.4361]
[1756775670188,0.8371,4308.0,4307.9,0.237]
[1756775670591,0.8371,4308.0,4307.4,0.3049]
[1756775670592,0.5361,4308.0,4307.8,0.237]
[1756775670888,0.4185,4307.4,4307.3,3.4448]
[1756775671090,0.4185,4307.4,4307.3,3.6439]
[1756775671091,0.7195,4307.4,4307.3,3.6439]
[1756775671295,0.7195,4307.0,4306.9,0.4068]
[1756775671500,0.7195,4307.0,4306.9,0.6438]
[1756775671894,0.5361,4307.0,4306.6,3.2078]
[1756775672201,0.5086,4306.3,4306.2,3.6146]
[1756775672494,0.7195,4306.3,4306.2,3.8516]
[1756775673294,0.5086,4306.9,4306.8,0.4068]
[1756775673491,3.5088,4307.3,4306.8,1.37505745]
[1756775673700,3.5088,4307.3,4307.2,0.7117]
[1756775673896,3.5088,4307.3,4307.2,0.9487]
[1756775673897,3.7164,4307.3,4307.2,0.9487]
[1756775674800,3.9273,4307.3,4307.2,0.6438]
[1756775675000,3.9273,4307.3,4306.6,0.3049]
[1756775675200,3.9273,4307.3,4306.7,0.226]
[1756775675598,3.9273,4307.3,4306.2,4.17605745]
[1756775675599,0.2076,4306.3,4306.2,3.9195]
[1756775675904,0.301,4306.9,4306.2,4.1565]
[1756775676395,0.301,4306.9,4306.8,0.1991]
[1756775676396,0.7195,4306.9,4306.8,0.1991]
[1756775676999,0.4185,4306.9,4306.3,40.8]
[1756775677195,0.7195,4306.3,4306.2,3.6439]
[1756775677595,0.7195,4306.3,4306.2,0.4361]
[1756775677793,0.7195,4306.3,4306.2,0.6438]
[1756775678302,0.7195,4306.3,4305.7,3.4069]
[1756775678303,0.7195,4305.8,4305.7,3.4069]
[1756775678500,0.7195,4305.8,4305.7,3.8516]
[1756775680209,0.7195,4305.8,4305.7,3.6146]
[1756775680409,0.7195,4305.8,4305.7,3.6439]
[1756775680913,0.7195,4305.8,4305.7,3.2078]
[1756775681103,0.2883,4305.7,4305.2,40.8]
[1756775681299,0.6936,4305.6,4305.5,0.237]
[1756775682607,0.6936,4305.6,4305.5,0.6365]
[1756775683711,0.6936,4305.6,4305.5,0.9475]
[1756775684409,0.6936,4305.6,4305.5,0.6365]
[1756775685509,0.4053,4305.6,4305.2,40.8]
[1756775685805,0.4891,4304.8,4304.7,0.7105]
[1756775686013,0.4891,4304.8,4304.7,0.9475]
[1756775686205,0.2883,4305.3,4305.2,0.3995]
[1756775686412,0.2883,4305.3,4305.2,0.7105]
[1756775687116,0.6936,4305.3,4305.2,0.3995]
[1756775690214,0.6936,4305.3,4305.2,0.7105]
[1756775691815,0.6936,4305.3,4305.2,0.3995]
[1756775692714,0.2883,4305.2,4305.1,0.237]
[1756775692916,0.6936,4305.2,4305.1,0.237]
[1756775693819,0.6936,4305.2,4305.1,0.435]
[1756775695113,0.6936,4304.8,4304.7,40.8]
[1756775695319,0.2883,4304.7,4304.6,0.237]
[1756775695511,0.6936,4304.7,4304.6,0.237]
[1756775695709,0.6936,4304.7,4304.6,0.435]
[1756775695914,0.6936,4304.7,4304.6,0.6365]
[1756775696407,0.6936,4304.7,4304.6,0.237]
[1756775696807,0.2883,4304.6,4304.4,40.8]
[1756775697009,0.6936,4304.6,4304.5,0.237]
[1756775697413,0.1264,4304.5,4303.8,3.5188]
[1756775697715,0.4891,4303.9,4303.8,4.15062]
[1756775697915,0.2883,4303.9,4303.8,4.38762]
[1756775698117,0.2883,4303.9,4303.8,45.18762]
[1756775698921,0.2883,4304.4,4303.8,44.9553]
[1756775699420,0.2883,4304.4,4303.8,45.92460163]
[1756775699821,0.1264,4304.5,4303.8,45.92460163]
[1756775700115,0.2883,4304.4,4303.8,45.92460163]
[1756775700319,0.6936,4303.9,4303.8,3.6073]
[1756775700518,0.2883,4303.9,4303.8,4.1553]
[1756775700826,0.2883,4305.1,4303.9,0.311]
[1756775701018,0.6936,4304.9,4304.8,0.198]
[1756775701315,0.4053,4304.2,4304.1,0.198]
[1756775701521,3.2078,4304.7,4304.1,1.20630163]
[1756775701723,0.4053,4304.7,4304.6,0.3995]
[1756775701927,0.6936,4304.7,4304.6,0.3995]
[1756775702217,1.27799738,4304.7,4304.6,0.3995]
[1756775702918,1.27799738,4304.7,4304.6,0.198]
[1756775703222,1.27799738,4304.7,4304.4,0.237]
[1756775703223,0.82,4304.5,4304.4,0.237]
[1756775703420,0.6936,4304.5,4304.4,0.3995]
[1756775703816,0.6936,4304.5,4304.4,0.7105]
[1756775704519,0.6936,4304.5,4304.4,0.3995]
[1756775704921,0.6936,4304.5,4304.4,0.7105]
[1756775705121,1.27853541,4304.5,4304.4,0.3995]
[1756775705519,1.07403541,4304.5,4304.4,0.7105]
[1756775705718,0.2883,4304.5,4304.4,1.67980163]
[1756775705920,0.4891,4304.9,4304.8,0.7105]
[1756775706422,3.2078,4305.2,4304.9,0.311]
[1756775706625,3.6131,4305.2,4305.1,0.3995]
[1756775706823,4.19819323,4305.2,4305.1,0.3995]
[1756775707224,4.48649323,4305.2,4305.1,0.3995]
[1756775707621,4.48649323,4305.2,4304.7,0.237]
[1756775707829,0.6936,4304.8,4304.7,0.435]
[1756775708227,0.2883,4304.7,4303.8,44.0078]
[1756775708427,0.2883,4304.7,4304.1,0.435]
[1756775708428,0.6936,4304.2,4304.1,0.435]
[1756775709433,0.6936,4304.2,4304.1,0.6365]
[1756775709625,0.6936,4304.9,4304.8,0.198]
[1756775709828,1.27926015,4304.9,4304.8,0.7105]
[1756775710024,1.07476015,4304.9,4304.8,1.67980163]
[1756775710224,0.2008,4305.0,4304.9,0.311]
[1756775710429,0.2008,4305.0,4304.8,0.96930163]
[1756775710430,1.40564135,4305.0,4304.6,0.237]
[1756775710621,0.4891,4305.0,4304.9,0.7105]
[1756775710825,0.58568783,4305.0,4304.9,0.7105]
[1756775711025,1.27378783,4305.0,4304.9,0.3995]
[1756775711327,1.27378783,4305.0,4304.3,3.2078]
[1756775711328,0.2894,4304.9,4304.3,3.505]
[1756775711631,0.4932,4304.4,4304.3,3.9116]
[1756775711827,0.4932,4304.4,4304.3,4.1486]
[1756775712223,0.6911,4304.4,4304.3,3.9116]
[1756775712526,0.6911,4304.4,4304.3,3.8514]
[1756775712829,0.6911,4304.4,4303.9,1.26650163]
[1756775713026,0.2894,4304.3,4304.0,0.237]
[1756775713333,0.6911,4304.1,4304.0,0.6436]
[1756775713521,0.6911,4304.1,4304.0,0.9408]
[1756775714122,0.6911,4304.1,4304.0,0.6436]
[1756775714726,0.6911,4304.1,4304.0,0.4066]
[1756775714927,0.6911,4304.1,4304.0,0.6436]
[1756775717936,0.6911,4304.1,4304.0,0.9408]
[1756775718131,0.4932,4304.1,4304.0,0.9408]
[1756775718332,0.6911,4304.1,4304.0,0.9408]
[1756775718737,0.2894,4304.1,4304.0,0.9408]
[1756775718937,0.4017,4305.0,4304.9,0.7038]
[1756775719136,0.4017,4305.0,4304.9,0.9408]
[1756775719335,0.6911,4305.0,4304.9,0.9408]
[1756775719732,1.2771199,4305.0,4304.9,0.4335]
[1756775720030,1.1020199,4305.0,4304.4,0.2972]
[1756775720230,0.6911,4304.4,4304.3,0.4066]
[1756775720634,0.6911,4304.4,4304.3,0.6436]
[1756775720829,0.2894,4304.3,4304.1,3.9]
[1756775721027,1.08360163,4304.5,4303.8,44.0078]
[1756775721339,1.08360163,4304.5,4303.7,0.237]
[1756775721340,0.6911,4303.8,4303.7,0.237]
[1756775721629,0.6911,4303.8,4303.2,3.2078]
[1756775721630,0.6911,4303.3,4303.2,3.2078]
[1756775721835,0.6911,4303.3,4303.2,3.4448]
[1756775722035,0.6911,4303.3,4303.2,3.6413]
[1756775722630,0.6911,4303.3,4303.2,0.4335]
[1756775722828,0.4017,4303.1,4303.0,41.037]
[1756775723033,0.6911,4303.1,4303.0,41.037]
[1756775723234,0.6911,4303.1,4303.0,0.6436]
[1756775724834,3.2078,4303.7,4303.0,0.9408]
[1756775725029,0.2894,4303.6,4303.5,0.7038]
[1756775725229,0.2894,4303.6,4303.5,0.9408]
[1756775725630,3.2078,4303.7,4303.5,0.9408]
[1756775725828,3.2078,4303.7,4303.6,0.7038]
[1756775727039,3.8989,4303.7,4303.6,0.4335]
[1756775727235,3.8989,4303.7,4302.6,2.92854348]
[1756775727236,0.516,4303.5,4303.4,0.237]
[1756775727436,0.8054,4303.5,4303.4,0.237]
[1756775728240,0.6911,4303.5,4303.4,0.4335]
[1756775728441,0.2894,4303.5,4303.4,0.9408]
[1756775728637,0.6911,4304.4,4304.3,0.4066]
[1756775729437,0.6911,4304.4,4304.3,0.1965]
[1756775729642,0.6911,4304.4,4304.2,0.237]
[1756775732755,0.2894,4304.3,4303.4,3.505]
[1756775733055,0.6911,4303.5,4303.4,3.6144]
[1756775733256,0.6911,4303.5,4303.4,44.6514]
[1756775733559,0.6911,4303.5,4303.4,44.9486]
[1756775733751,0.1143,4304.5,4303.4,44.9486]
[1756775733951,0.2894,4304.4,4303.6,0.2972]
[1756775734257,0.6911,4304.4,4304.3,0.1965]
[1756775734657,3.4972,4304.6,4304.3,0.4066]
[1756775734858,3.2078,4304.6,4304.5,0.4066]
[1756775735059,3.6095,4304.6,4304.5,0.1965]
[1756775735255,3.6095,4304.6,4304.4,0.237]
[1756775735454,0.6911,4304.5,4304.4,0.237]
[1756775735656,0.8054,4304.5,4304.0,3.2078]
[1756775735960,0.6911,4304.2,4304.1,0.4335]
[1756775736356,0.6911,4304.2,4303.5,3.2078]
[1756775736562,0.4932,4303.7,4303.6,0.4066]
[1756775736761,0.6911,4303.7,4303.6,0.6436]
[1756775738161,0.2894,4303.7,4303.6,0.6436]
[1756775738464,0.6911,4304.4,4304.3,0.1965]
[1756775738666,0.6911,4304.4,4304.0,0.237]
[1756775739360,0.6911,4304.4,4303.5,3.2078]
[1756775739564,0.6911,4303.5,4303.4,40.8]
[1756775739760,0.4017,4302.6,4302.5,0.1965]
[1756775739964,0.6911,4302.0,4301.9,3.2078]
[1756775740164,0.2894,4301.9,4301.1,40.8]
[1756775740358,0.2894,4301.7,4300.6,0.237]
[1756775741061,0.3001,4301.4,4300.6,0.237]
[1756775743066,0.3001,4301.4,4300.7,0.2899]
[1756775743255,3.324,4301.8,4301.0,3.2078]
[1756775743256,0.126,4301.5,4301.0,3.2078]
[1756775743463,3.05454348,4301.5,4301.0,3.4448]
[1756775743765,0.3001,4301.4,4301.0,3.4448]
[1756775744270,3.05454348,4301.5,4301.0,3.4448]
[1756775744870,0.3001,4301.4,4301.0,3.4448]
[1756775745074,0.126,4301.5,4301.0,3.4448]
[1756775745368,0.3001,4301.4,4301.0,3.4448]
[1756775745565,0.126,4301.5,4301.0,3.4448]
[1756775745765,0.3001,4301.7,4301.0,4.131]
[1756775745967,3.324,4301.8,4301.0,4.131]
[1756775746272,0.7135,4301.1,4301.0,3.2078]
[1756775746472,0.7135,4301.1,4301.0,3.6476]
[1756775746971,0.7135,4301.1,4301.0,0.4398]
[1756775747171,0.7135,4301.1,4301.0,0.237]
[1756775747360,0.7135,4301.0,4300.9,0.237]
[1756775748170,0.126,4301.0,4300.5,3.2078]
[1756775748369,0.4134,4300.6,4300.4,0.237]
[1756775748572,0.7135,4300.5,4300.4,0.237]
[1756775748773,0.7135,4300.5,4300.4,41.037]
[1756775749167,0.5099,4300.5,4300.4,0.4398]
[1756775749466,0.7135,4300.5,4300.4,0.4398]
[1756775751470,0.5099,4300.5,4300.4,0.6333]
[1756775752265,0.3001,4301.1,4300.4,0.6333]
[1756775752471,0.5099,4301.1,4301.0,0.3963]
[1756775752670,0.7135,4301.1,4300.8,0.237]
[1756775752874,0.7135,4300.9,4300.8,0.237]
[1756775753470,0.3001,4301.4,4300.8,0.9232]
[1756775753769,0.3001,4301.4,4301.3,0.6862]
[1756775753970,0.7135,4301.4,4301.3,0.3963]
[1756775754475,0.5099,4301.4,4301.3,0.6862]
[1756775755169,0.7135,4301.4,4301.3,0.3963]
[1756775755576,0.5099,4301.4,4301.3,0.6862]
[1756775756274,0.3001,4301.6,4301.3,0.3963]
[1756775756568,0.1162,4301.8,4301.7,0.2899]
[1756775756770,0.1162,4301.8,4301.7,0.9232]
[1756775756970,0.1162,4301.8,4301.7,41.7232]
[1756775757974,0.1162,4301.8,4301.7,45.95566]
[1756775758676,0.3001,4303.2,4302.7,0.3963]
[1756775758983,3.2078,4303.3,4303.1,0.3963]
[1756775759170,0.7135,4303.2,4303.1,0.3963]
[1756775759374,0.7135,4303.2,4303.1,0.4398]
[1756775759668,0.3001,4302.9,4301.3,3.2078]
[1756775759869,0.3001,4301.4,4300.2,3.2078]
[1756775760075,0.3001,4301.4,4300.3,0.238]
[1756775760267,0.3001,4301.4,4300.4,40.8]
[1756775760468,0.3001,4301.4,4300.5,0.2899]
[1756775760673,0.3001,4301.4,4301.2,3.4977]
[1756775760873,0.3001,4301.4,4301.3,0.2899]
[1756775761075,0.126,4302.0,4301.2,3.2078]
[1756775761274,0.3001,4301.9,4301.0,0.238]
[1756775761470,0.3001,4301.4,4300.5,0.2899]
[1756775761776,0.3001,4301.4,4300.6,0.238]
[1756775762381,0.3001,4301.4,4300.7,0.2899]
[1756775763077,0.126,4301.5,4300.4,40.8]
[1756775763286,0.3001,4300.9,4300.6,0.238]
[1756775763976,0.126,4301.0,4300.6,0.238]
[1756775764478,0.3001,4300.9,4300.6,0.238]
[1756775764877,0.126,4301.0,4300.6,0.238]
[1756775765279,0.3001,4300.9,4300.6,0.238]
[1756775765584,0.126,4301.0,4300.6,0.238]
[1756775765778,0.3001,4300.9,4300.6,0.238]
[1756775766177,0.126,4301.0,4300.6,0.238]
[1756775766775,0.126,4301.0,4300.2,3.2078]
[1756775766981,0.126,4301.0,4300.2,3.4458]
[1756775767182,0.3001,4300.9,4300.2,0.238]
[1756775767878,0.5381,4300.9,4300.2,0.238]
[1756775768081,0.4134,4300.3,4300.2,0.238]
[1756775768381,0.7135,4300.3,4300.2,0.238]
[1756775768881,0.7135,4300.3,4300.1,0.00507764]
[1756775769381,1.00614596,4300.2,4300.1,0.00507764]
[1756775769680,0.4134,4299.5,4299.4,3.4458]
[1756775769886,0.7135,4299.5,4299.4,3.4458]
[1756775770071,0.3001,4299.4,4299.1,0.238]
[1756775770274,0.126,4299.0,4298.9,3.2078]
[1756775770580,0.126,4299.0,4298.4,3.2078]
[1756775770778,0.3001,4298.8,4298.4,3.2078]
[1756775770978,0.59536088,4298.7,4298.4,3.2078]
[1756775771181,0.1175,4298.5,4297.8,3.2078]
[1756775771381,0.59481,4298.4,4297.3,3.5199]
[1756775771574,0.89291,4298.3,4297.4,0.238]
[1756775771780,0.2981,4298.1,4297.4,0.238]
[1756775772484,0.2981,4298.4,4297.5,0.239]
[1756775772686,0.2981,4298.2,4297.5,0.239]
[1756775774485,0.2981,4298.4,4297.3,3.2078]
[1756775774780,3.2078,4298.5,4297.4,0.54477]
[1756775774980,0.2981,4298.6,4297.9,0.3121]
[1756775775186,0.2981,4298.6,4298.0,0.239]
[1756775775387,0.2981,4298.4,4298.0,0.19]
[1756775775787,0.1175,4298.5,4298.0,0.19]
[1756775775986,0.2981,4298.4,4298.0,0.19]
[1756775776486,0.2981,4298.6,4298.0,40.99]
[1756775776788,0.2981,4298.6,4298.1,0.3121]
[1756775777084,0.2981,4298.6,4298.0,41.3021]
[1756775778285,3.2078,4298.7,4298.1,0.238]
[1756775778484,0.2981,4298.6,4298.1,0.5501]
[1756775778684,3.2078,4298.7,4298.1,0.238]
[1756775778982,3.5059,4298.7,4298.1,0.5501]
[1756775779780,0.2981,4299.2,4298.3,3.2078]
[1756775779982,0.2981,4299.2,4298.4,0.3121]
[1756775780284,0.2981,4299.2,4298.5,0.238]
[1756775780693,0.5012,4298.6,4298.5,0.6506]
[1756775780882,0.5012,4298.6,4298.5,0.9627]
[1756775781081,0.5012,4298.6,4298.5,0.6506]
[1756775781591,6.13634348,4299.3,4298.5,0.9627]
[1756775781592,0.2981,4299.2,4298.5,0.9627]
[1756775781785,0.6945,4299.2,4299.1,0.2079]
[1756775782087,0.5012,4297.7,4297.6,3.6537]
[1756775782288,0.6945,4297.7,4297.6,3.6537]
[1756775782485,0.6945,4297.7,4297.6,3.2078]
[1756775782486,0.2981,4297.7,4297.6,3.2078]
[1756775782792,0.2981,4297.9,4297.3,40.8]
[1756775782991,3.04604348,4298.0,4297.3,40.8]
[1756775783289,0.2981,4297.8,4297.3,40.8]
[1756775783488,0.2981,4297.7,4297.2,0.239]
[1756775784084,6.25384348,4298.0,4297.2,0.239]
[1756775784383,0.2981,4297.9,4297.2,0.239]
[1756775784784,0.2981,4298.4,4297.6,0.3121]
[1756775784987,0.2981,4298.4,4297.7,0.239]
[1756775785189,0.2981,4298.4,4297.8,0.239]
[1756775785395,0.2981,4298.4,4297.7,0.239]
[1756775785579,0.2981,4298.4,4297.5,0.239]
[1756775786091,0.1175,4298.0,4297.5,0.239]
[1756775786389,0.2981,4297.9,4297.3,0.239]
[1756775786992,3.3253,4298.0,4297.3,0.239]
[1756775786993,0.2981,4297.8,4297.3,0.239]
[1756775787389,0.2981,4297.6,4297.1,44.2468]
[1756775787588,3.3253,4298.0,4297.1,44.5589]
[1756775787589,0.2981,4297.9,4297.1,44.5589]
[1756775787793,3.3253,4298.0,4297.1,44.5589]
[1756775787995,0.2981,4297.7,4297.1,44.5589]
[1756775788493,0.2981,4297.7,4297.1,44.3199]
[1756775788792,3.3253,4298.0,4297.2,0.239]
[1756775788994,0.88908871,4297.9,4297.2,0.239]
[1756775789197,0.2981,4297.9,4297.2,0.239]
[1756775789585,0.5012,4297.7,4297.6,0.2079]
[1756775789991,0.6945,4297.7,4297.2,0.5511]
[1756775790387,0.2031,4297.6,4297.5,0.2079]
[1756775790593,0.5012,4297.6,4297.5,0.2079]
[1756775790891,0.6945,4297.6,4297.5,0.2079]
[1756775791088,0.1933,4297.5,4297.4,0.239]
[1756775791293,3.3253,4298.0,4297.1,44.0078]
[1756775791294,0.5012,4297.2,4297.1,44.0078]
[1756775791697,0.2981,4297.2,4297.1,4.1715]
[1756775792096,0.5012,4297.2,4297.1,44.6594]
[1756775792290,0.5012,4297.2,4297.1,3.8594]
[1756775792488,3.3253,4298.0,4297.1,0.9637]
[1756775792690,0.2981,4297.8,4297.1,0.6516]
[1756775792990,3.2078,4298.0,4297.9,0.7247]
[1756775793191,3.9023,4298.0,4297.9,0.4126]
[1756775793395,3.9023,4298.0,4297.9,0.2079]
[1756775793594,3.9023,4298.0,4297.8,0.239]
[1756775793995,0.3964,4297.6,4297.0,3.2078]
[1756775794190,3.3253,4298.0,4297.4,0.2047]
[1756775794191,0.2981,4297.5,4297.4,0.2047]
[1756775794391,0.5012,4297.5,4297.4,0.4126]
[1756775794599,3.2078,4298.0,4297.4,0.7247]
[1756775794894,0.2031,4297.5,4297.4,0.9637]
[1756775795094,0.3964,4297.5,4297.0,3.2078]
[1756775795296,0.2981,4297.4,4297.1,0.239]
[1756775795600,0.5012,4297.2,4297.1,0.2079]
[1756775795893,0.6945,4297.2,4297.1,0.4469]
[1756775796094,0.5012,4297.2,4297.1,0.9637]
[1756775796394,0.5012,4297.2,4297.1,0.6516]
[1756775797198,0.5012,4297.2,4297.1,0.4126]
[1756775797397,0.5012,4297.2,4297.1,0.6516]
[1756775797597,0.2981,4297.9,4297.1,0.9637]
[1756775797798,0.2981,4297.7,4297.1,0.9637]
[1756775797993,0.2031,4297.5,4297.4,0.2079]
[1756775798195,1.09441357,4297.5,4297.4,0.2079]
[1756775799201,1.28771357,4297.5,4297.4,0.2079]
[1756775800900,1.28771357,4297.5,4297.4,0.4126]
[1756775801100,0.59321357,4297.5,4297.4,0.72]
[1756775801303,1.10571357,4297.5,4297.4,0.72]
[1756775801599,1.10571357,4297.5,4297.4,0.4126]
[1756775802707,1.10571357,4297.5,4297.4,0.72]
[1756775803110,0.3017,4297.9,4297.5,0.3074]
[1756775803314,0.59520131,4297.8,4297.7,0.6998]
[1756775803518,0.59520131,4297.8,4297.7,0.9378]
[1756775804323,1.30750131,4297.8,4297.7,0.4397]
[1756775804507,0.89690131,4297.8,4297.7,0.3924]
[1756775804818,0.89690131,4297.8,4297.7,0.9378]
[1756775805014,0.59520131,4297.8,4297.7,5.17048]
[1756775805317,0.3017,4298.4,4298.3,0.6998]
[1756775805514,0.89695208,4298.4,4298.3,0.9378]
[1756775805812,3.9201,4299.0,4298.4,0.3074]
[1756775806011,0.89702906,4298.9,4298.4,0.238]
[1756775806214,0.3017,4298.4,4298.3,40.8]
[1756775806509,0.3017,4298.4,4298.3,41.038]
[1756775807810,0.89660832,4298.4,4298.3,41.038]
[1756775808010,0.3017,4298.4,4298.3,41.038]
[1756775808419,0.3017,4298.4,4298.3,41.3454]
[1756775808617,0.3017,4298.9,4298.3,41.3454]
[1756775808817,1.10752779,4298.8,4298.7,0.3924]
[1756775809015,1.30732779,4298.8,4298.7,0.2017]
[1756775809219,1.30732779,4298.8,4298.6,0.239]
[1756775809415,0.89672779,4298.7,4298.5,0.239]
[1756775809623,1.30732779,4298.6,4298.5,0.4407]
[1756775811118,1.30732779,4298.6,4298.5,0.4397]
[1756775812335,0.7123,4298.6,4298.5,0.4397]
[1756775812518,1.30721194,4298.6,4298.5,0.4397]
[1756775813326,3.3253,4299.5,4298.9,0.3924]
[1756775813622,1.30720701,4299.4,4299.3,0.2017]
[1756775814820,1.30720701,4299.4,4299.3,0.6304]
[1756775815116,0.7123,4299.4,4299.3,0.4397]
[1756775815922,0.7123,4299.4,4299.3,0.2017]
[1756775816223,0.7123,4299.4,4299.3,0.238]
[1756775817225,0.7123,4299.4,4298.3,40.8]
[1756775817226,0.7123,4298.6,4298.3,40.8]
[1756775817416,0.7123,4298.6,4298.5,0.238]
[1756775817613,3.3289,4299.0,4298.4,0.1907]
[1756775817815,0.2108,4298.6,4298.5,0.6304]
[1756775818017,0.5125,4298.6,4298.5,0.6304]
[1756775818320,0.7123,4298.6,4298.3,40.8]
[1756775818522,0.3017,4298.3,4297.6,0.3074]
[1756775818728,0.5125,4297.9,4297.8,0.6304]
[1756775819123,0.7123,4297.9,4297.8,40.8]
[1756775819325,0.7123,4297.4,4297.3,0.238]
[1756775819730,0.7123,4297.4,4297.3,41.038]
[1756775820731,0.4106,4297.4,4296.7,3.5152]
[1756775820925,0.3017,4297.3,4296.8,0.238]
[1756775821125,0.7123,4296.9,4296.8,0.3924]
[1756775821326,0.7123,4296.9,4296.8,41.2397]
[1756775821632,0.7123,4296.9,4296.8,41.0017]
[1756775821830,0.7123,4296.9,4296.8,41.2397]
[1756775822025,0.3017,4297.4,4296.8,41.5471]
[1756775822625,0.5125,4296.9,4296.8,41.2397]
[1756775823633,0.5125,4296.9,4296.8,41.038]
[1756775824727,0.5125,4296.9,4296.8,40.8]
[1756775824926,0.5125,4296.9,4296.8,41.038]
[1756775825932,0.5125,4296.9,4296.8,0.9378]
[1756775826126,0.5125,4296.9,4296.8,0.6304]
[1756775826434,0.5125,4296.9,4296.8,0.9378]
[1756775827027,0.7123,4296.9,4296.8,0.6304]
[1756775827230,0.2108,4296.0,4295.9,0.6998]
[1756775827434,0.7123,4296.0,4295.9,0.6304]
[1756775827629,0.8334,4296.0,4295.9,0.238]
[1756775827926,0.8334,4296.0,4295.2,40.8]
[1756775828129,0.8334,4296.0,4295.3,0.238]
[1756775829035,0.5317,4296.0,4295.2,40.8]
[1756775829230,0.4106,4295.3,4295.1,3.2078]
[1756775829434,3.6184,4295.3,4294.6,3.2078]
[1756775829731,3.6184,4295.3,4294.7,41.038]
[1756775829929,0.3017,4295.7,4295.2,0.3074]
[1756775830232,0.3017,4295.7,4295.6,0.6998]
[1756775830934,3.2078,4295.8,4295.7,0.6998]
[1756775831126,3.2078,4295.8,4295.7,0.9378]
[1756775831329,3.2078,4295.8,4295.7,0.6998]
[1756775831535,3.2078,4295.8,4294.3,3.26894324]
[1756775831536,0.311,4295.7,4294.5,3.2078]
[1756775831829,0.54382,4295.7,4294.6,0.238]
[1756775832030,0.5173,4294.7,4294.6,0.6587]
[1756775832332,0.5173,4294.7,4294.6,0.9488]
[1756775832534,0.5173,4294.7,4294.6,0.6587]
[1756775833030,3.2078,4295.3,4294.6,5.18265]
[1756775833031,0.311,4295.2,4294.6,5.18265]
[1756775833231,0.311,4295.2,4295.1,0.7108]
[1756775833430,0.311,4295.2,4295.1,0.9498]
[1756775833930,0.311,4296.2,4296.1,0.4207]
[1756775834133,0.1211,4297.0,4296.1,0.4207]
[1756775834134,0.311,4296.8,4296.1,0.9498]
[1756775834738,0.311,4296.8,4296.1,0.5291]
[1756775835232,0.311,4296.8,4296.1,0.239]
[1756775835433,0.311,4296.8,4295.8,3.2078]